fUST/lending_fUST_20250729
["ID","MTS","AMOUNT","RATE_DAILY","PERIOD"]
[375929858,1753788632673,-500.0,0.0001904,2]
[375929859,1753788632681,-3754.51338234,0.00019041,2]
[375929860,1753788632694,-46245.48661766,0.00019041,2]
[375929861,1753788632704,-59020.39078704,0.00019045,2]
[375929889,1753788638303,-712.35400742,0.00019045,2]
[375929891,1753788638313,-446.98,0.00019168,3]
[375929893,1753788638323,-488.45,0.00019178,2]
[375929895,1753788638332,-460.0,0.00019178,2]
[375929897,1753788638341,-462.24896373,0.00019178,2]
[375929899,1753788638351,-460.0,0.00019178,2]
[375929901,1753788638360,-460.0,0.00019178,2]
[375929903,1753788638370,-460.0,0.00019178,2]
[375929905,1753788638379,-460.0,0.00019178,2]
[375929907,1753788638389,-460.0,0.00019178,2]
[375929909,1753788638398,-460.0,0.00019178,2]
[375929910,1753788638408,-460.0,0.00019178,2]
[375929912,1753788638417,-178.65666494,0.00019178,2]
[375929915,1753788638427,-460.0,0.00019178,2]
[375929917,1753788638438,-460.0,0.00019178,2]
[375929918,1753788638447,-460.0,0.00019178,2]
[375929921,1753788638462,-306.46938945,0.00019178,2]
[375929923,1753788638471,-460.0,0.00019178,2]
[375929924,1753788638481,-460.0,0.00019178,2]
[375929926,1753788638491,-461.20455348,0.00019178,2]
[375929929,1753788638500,-460.0,0.00019178,2]
[375929931,1753788638511,-460.0,0.00019178,2]
[375929933,1753788638523,-460.0,0.00019178,2]
[375929935,1753788638533,-460.0,0.00019178,2]
[375929936,1753788638542,-460.0,0.00019178,2]
[375929937,1753788638551,-460.0,0.00019178,2]
[375929938,1753788638561,-359.6760438,0.00019178,2]
[375929940,1753788638574,-100.3239562,0.00019178,2]
[375929941,1753788638584,-460.0,0.00019178,2]
[375929942,1753788638593,-460.0,0.00019178,2]
[375929943,1753788638603,-460.0,0.00019178,2]
[375929944,1753788638612,-460.0,0.00019178,2]
[375929945,1753788638622,-306.1987352,0.00019178,2]
[375929946,1753788638631,-460.0,0.00019178,2]
[375929947,1753788638640,-460.0,0.00019178,2]
[375929948,1753788638649,-462.74713378,0.00019178,2]
[375929949,1753788638659,-2611.09,0.00019178,2]
[375929950,1753788638669,-460.0,0.00019178,2]
[375929951,1753788638679,-460.0,0.00019178,2]
[375929952,1753788638689,-492.58656034,0.00019178,2]
[375929964,1753788640266,-591.71343966,0.00019178,2]
[375929965,1753788640276,-495.96,0.00019178,2]
[375929966,1753788640286,-460.0,0.00019178,2]
[375929967,1753788640296,-460.0,0.00019178,2]
[375929968,1753788640306,-460.0,0.00019178,2]
[375929969,1753788640315,-460.0,0.00019178,2]
[375929970,1753788640324,-460.0,0.00019178,2]
[375929971,1753788640334,-405.94886252,0.00019178,2]
[375930217,1753788643541,-54.05113748,0.00019178,2]
[375930219,1753788643550,-382.51993777,0.00019178,2]
[375930473,1753788646146,-77.48006223,0.00019178,2]
[375930475,1753788646155,-2582.71993777,0.00019178,2]
[375930783,1753788998261,13677.96081914,0.00017925,2]
[375930784,1753788998284,11222.03918086,0.00017925,2]
[375930795,1753789225503,-300.0,0.00018771,2]
[375930796,1753789225524,-300.0,0.00018771,2]
[375930797,1753789225547,-1200.0,0.00018771,2]
[375930798,1753789225567,-40795.0,0.00018772,2]
[375930813,1753789513270,-1200.0,0.00018772,2]
[375930814,1753789513295,-9258.69737257,0.00018773,2]
[375930815,1753789513319,-300.0,0.00018831,2]
[375930816,1753789513342,-300.0,0.00018831,2]
[375930817,1753789513365,-1200.0,0.00018832,2]
[375930818,1753789513389,-4863.48852182,0.00018873,2]
[375930819,1753789513413,-5160.30310852,0.00018873,2]
[375930820,1753789513437,-284.16729285,0.000189,2]
[375930821,1753789513466,-209.83741689,0.000189,2]
[375930822,1753789513493,-502.73276651,0.00018932,2]
[375930823,1753789513518,-500.0,0.00018932,2]
[375930824,1753789513544,-610.45337963,0.00018932,2]
[375930825,1753789513568,-586.04333938,0.00018932,2]
[375930826,1753789513594,-500.0,0.00018932,2]
[375930827,1753789513618,-440.16891402,0.00018932,2]
[375930828,1753789513642,-500.0,0.00018932,2]
[375930829,1753789513666,-500.0,0.00018932,2]
[375930830,1753789513689,-500.0,0.00018932,2]
[375930831,1753789513714,-500.0,0.00018932,2]
[375930832,1753789513737,-500.0,0.00018932,2]
[375930833,1753789513765,-500.0,0.00018932,2]
[375930834,1753789513789,-500.0,0.00018932,2]
[375930835,1753789513811,-222.29317711,0.00018932,2]
[375930836,1753789513834,-242.14837705,0.00018932,2]
[375930837,1753789513857,-500.0,0.00018932,2]
[375930838,1753789513880,-500.0,0.00018932,2]
[375930839,1753789513903,-500.0,0.00018932,2]
[375930840,1753789513926,-328.01211197,0.00018932,2]
[375930841,1753789513949,-500.0,0.00018932,2]
[375930842,1753789513972,-348.99367036,0.00018932,2]
[375930843,1753789513995,-500.0,0.00018932,2]
[375930844,1753789514018,-500.0,0.00018932,2]
[375930845,1753789514041,-500.0,0.00018932,2]
[375930846,1753789514064,-500.0,0.00018932,2]
[375930847,1753789514088,-500.0,0.00018932,2]
[375930848,1753789514112,-500.0,0.00018932,2]
[375930849,1753789514309,-192.90176509,0.00018932,2]
[375930850,1753789514335,-500.0,0.00018932,2]
[375930851,1753789514362,-500.0,0.00018932,2]
[375930852,1753789514386,-500.0,0.00018932,2]
[375930853,1753789514410,-500.0,0.00018932,2]
[375930854,1753789514434,-500.0,0.00018932,2]
[375930855,1753789514459,-500.0,0.00018932,2]
[375930856,1753789514484,-500.0,0.00018932,2]
[375930857,1753789514517,-500.0,0.00018932,2]
[375930858,1753789514545,-500.0,0.00018932,2]
[375930859,1753789514570,-500.0,0.00018932,2]
[375930860,1753789514598,-500.0,0.00018932,2]
[375930861,1753789514622,-500.0,0.00018932,2]
[375930862,1753789514646,-500.0,0.00018932,2]
[375930863,1753789514672,-500.0,0.00018932,2]
[375930864,1753789514697,-500.0,0.00018932,2]
[375930865,1753789514721,-500.0,0.00018932,2]
[375930866,1753789514746,-500.0,0.00018932,2]
[375930867,1753789514771,-500.0,0.00018932,2]
[375930868,1753789514796,-500.0,0.00018932,2]
[375930869,1753789514820,-500.0,0.00018932,2]
[375930870,1753789514844,-500.0,0.00018932,2]
[375930871,1753789514868,-500.0,0.00018932,2]
[375930872,1753789514892,-393.37738582,0.00018932,2]
[375930873,1753789514915,-500.0,0.00018933,2]
[375930874,1753789514937,-50000.0,0.00018933,2]
[375930875,1753789514960,-500.0,0.00018934,2]
[375930876,1753789514984,-500.0,0.00018934,2]
[375930877,1753789515010,-500.0,0.00018934,2]
[375930878,1753789515035,-500.0,0.00018934,2]
[375930879,1753789515058,-500.0,0.00018934,2]
[375930880,1753789515083,-500.0,0.00018934,2]
[375930881,1753789515107,-500.0,0.00018934,2]
[375930882,1753789515129,-500.0,0.00018934,2]
[375930883,1753789515153,-500.0,0.00018934,2]
[375930884,1753789515175,-500.0,0.00018934,2]
[375930885,1753789515198,-500.0,0.00018934,2]
[375930886,1753789515220,-500.0,0.00018934,2]
[375930887,1753789515244,-635.03781758,0.00018934,2]
[375930888,1753789515268,-825.56,0.00018935,3]
[375930889,1753789515291,-412.78,0.00018935,3]
[375930890,1753789515313,-206.39,0.00018935,3]
[375930891,1753789515335,-619.17,0.00018935,3]
[375930892,1753789515358,-1529.51724963,0.00018945,2]
[375930893,1753789515380,-273451.6786164,0.00018945,2]
[375930894,1753789515403,-500.0,0.00018973,2]
[375930895,1753789515425,-500.0,0.00018973,2]
[375930896,1753789515448,-500.0,0.00018973,2]
[375930897,1753789515470,-500.0,0.00018973,2]
[375930898,1753789515497,-300.59268937,0.00018973,2]
[375930899,1753789515519,-500.0,0.00018973,2]
[375930900,1753789515544,-500.0,0.00018973,2]
[375930901,1753789515570,-276.08854314,0.00018973,2]
[375930902,1753789515593,-500.34207973,0.00018973,2]
[375930903,1753789515616,-500.0,0.00018973,2]
[375930904,1753789515638,-500.0,0.00018973,2]
[375930905,1753789515661,-500.0,0.00018973,2]
[375930906,1753789515684,-500.0,0.00018973,2]
[375930907,1753789515707,-500.0,0.00018973,2]
[375930908,1753789515730,-500.0,0.00018973,2]
[375930909,1753789515753,-500.0,0.00018973,2]
[375930910,1753789515775,-500.0,0.00018973,2]
[375930911,1753789515797,-500.0,0.00018973,2]
[375930912,1753789515819,-500.0,0.00018973,2]
[375930913,1753789515841,-500.0,0.00018973,2]
[375930914,1753789515863,-500.0,0.00018973,2]
[375930915,1753789515885,-500.0,0.00018973,2]
[375930916,1753789515908,-500.0,0.00018973,2]
[375930917,1753789515930,-500.0,0.00018973,2]
[375930918,1753789515952,-515.20000971,0.00018973,2]
[375930919,1753789515974,-500.0,0.00018973,2]
[375930920,1753789515997,-500.0,0.00018973,2]
[375930921,1753789516020,-500.0,0.00018973,2]
[375930922,1753789516042,-501.1427899,0.00018973,2]
[375930923,1753789516064,-500.0,0.00018973,2]
[375930924,1753789516089,-500.0,0.00018973,2]
[375930925,1753789516111,-503.36843688,0.00018973,2]
[375930926,1753789516134,-500.0,0.00018973,2]
[375930927,1753789516156,-500.32314105,0.00018973,2]
[375930928,1753789516180,-500.0,0.00018973,2]
[375930929,1753789516202,-500.0,0.00018973,2]
[375930930,1753789516224,-500.0,0.00018973,2]
[375930931,1753789516247,-500.0,0.00018973,2]
[375930932,1753789516271,-500.0,0.00018973,2]
[375930933,1753789516293,-448.30246823,0.00018973,2]
[375930934,1753789516315,-500.0,0.00018973,2]
[375930935,1753789516336,-500.0,0.00018973,2]
[375930936,1753789516358,-157.65294015,0.00018973,2]
[375930937,1753789516379,-500.0,0.00018973,2]
[375930938,1753789516401,-500.0,0.00018973,2]
[375930939,1753789516423,-501.39326315,0.00018973,2]
[375930940,1753789516445,-500.0,0.00018973,2]
[375930941,1753789516467,-435.62737133,0.00018973,2]
[375930942,1753789516494,-500.0,0.00018973,2]
[375930943,1753789516517,-500.0,0.00018973,2]
[375930944,1753789516672,-209.83741663,0.00019072,2]
[375930945,1753789516710,500.0,0.00018973,2]
[375930946,1753789516750,500.0,0.00018973,2]
[375930947,1753789517014,500.0,0.00018973,2]
[375930948,1753789517248,500.0,0.00018973,2]
[375930950,1753789545640,92326.37656753,0.00018833,2]
[375930952,1753789637328,1026.45814828,0.00018,5]
[375930954,1753789681080,248.663404,0.00018057,2]
[375930955,1753789711920,463.335092,0.00013699,2]
[375930995,1753789832427,-300.0,0.00018831,2]
[375930996,1753789832437,-181.77099208,0.00018831,2]
[375930998,1753789832449,-118.22900792,0.00018831,2]
[375931000,1753789832459,-1200.0,0.00018831,2]
[375931001,1753789832468,-299.21130723,0.00018832,2]
[375931003,1753789832478,-500.0,0.00018832,2]
[375931005,1753789832487,-500.0,0.00018832,2]
[375931007,1753789832498,-589.33773858,0.00018832,2]
[375931009,1753789832507,-1200.0,0.00018832,2]
[375931011,1753789832517,-35171.26734937,0.00018833,2]
[375931013,1753789832528,-216625.95580876,0.00018833,2]
[375931014,1753789832538,-189.4448619,0.000189,2]
[375931016,1753789832548,-155.0,0.00019072,2]
[375931018,1753789832558,-4128.2424868,0.00019078,2]
[375931021,1753789832568,-3242.32568122,0.00019078,2]
[375931022,1753789832577,-4375.57261507,0.00019078,2]
[375931025,1753789832592,-33450.73549855,0.00019078,2]
[375931028,1753789832602,-294.0,0.00019134,2]
[375931030,1753789832611,-500.0,0.00019173,2]
[375931031,1753789832621,-500.59710166,0.00019173,2]
[375931033,1753789832631,-500.0,0.00019173,2]
[375931035,1753789832641,-500.0,0.00019173,2]
[375931037,1753789832652,-500.0,0.00019173,2]
[375931039,1753789832662,-500.0,0.00019173,2]
[375931041,1753789832673,-500.0,0.00019173,2]
[375931042,1753789832682,-500.0,0.00019173,2]
[375931044,1753789832692,-500.33723967,0.00019173,2]
[375931046,1753789832701,-500.0,0.00019173,2]
[375931048,1753789832711,-500.0,0.00019173,2]
[375931049,1753789832720,-500.0,0.00019173,2]
[375931051,1753789832730,-500.0,0.00019173,2]
[375931053,1753789832739,-512.91276864,0.00019173,2]
[375931055,1753789832749,-500.6679518,0.00019173,2]
[375931057,1753789832758,-500.0,0.00019173,2]
[375931058,1753789832769,-500.0,0.00019173,2]
[375931060,1753789832778,-500.0,0.00019173,2]
[375931062,1753789832787,-500.0,0.00019173,2]
[375931064,1753789832796,-504.13604337,0.00019173,2]
[375931065,1753789832806,-500.0,0.00019173,2]
[375931067,1753789832815,-500.0,0.00019173,2]
[375931069,1753789832824,-230.24984988,0.00019173,2]
[375931071,1753789832837,-212.91670319,0.00019173,2]
[375931073,1753789832846,-500.0,0.00019173,2]
[375931074,1753789832856,-204.35126065,0.00019173,2]
[375931076,1753789832865,-500.0,0.00019173,2]
[375931078,1753789832875,-500.0,0.00019173,2]
[375931080,1753789832884,-147.23762976,0.00019173,2]
[375931082,1753789832896,-340.18055062,0.00019173,2]
[375931084,1753789832906,-127.76679766,0.00019173,2]
[375931086,1753789832918,-253.29003,0.00019173,2]
[375931088,1753789832930,-118.94317234,0.00019173,2]
[375931089,1753789832939,-335.94065933,0.00019173,2]
[375931091,1753789832951,-164.05934067,0.00019173,2]
[375931093,1753789832960,-500.0,0.00019173,2]
[375931095,1753789832971,-500.98550011,0.00019173,2]
[375931097,1753789832980,-500.0,0.00019173,2]
[375931099,1753789832990,-500.0,0.00019173,2]
[375931101,1753789833000,-500.0,0.00019173,2]
[375931103,1753789833010,-474.55784616,0.00019173,2]
[375931124,1753789838434,-25.44215384,0.00019173,2]
[375931126,1753789838444,-500.0,0.00019173,2]
[375931128,1753789838454,-95.47618807,0.00019173,2]
[375931130,1753789838465,-404.52381193,0.00019173,2]
[375931132,1753789838475,-500.0,0.00019173,2]
[375931134,1753789838484,-421.10922442,0.00019173,2]
[375931135,1753789838494,-500.0,0.00019173,2]
[375931137,1753789838504,-330.96204349,0.00019173,2]
[375931139,1753789838513,-503.28221012,0.00019173,2]
[375931141,1753789838522,-500.0,0.00019173,2]
[375931143,1753789838532,-155.0,0.00019177,2]
[375931145,1753789838541,-764.75862481,0.00019178,2]
[375931147,1753789838551,-460.0,0.00019178,2]
[375931149,1753789838561,-460.0,0.00019178,2]
[375931151,1753789838570,-460.0,0.00019178,2]
[375931153,1753789838580,-460.0,0.00019178,2]
[375931155,1753789838594,-460.0,0.00019178,2]
[375931157,1753789838603,-460.0,0.00019178,2]
[375931159,1753789838612,-306.08118366,0.00019178,2]
[375931161,1753789838622,-460.0,0.00019178,2]
[375931163,1753789838633,-460.0,0.00019178,2]
[375931164,1753789838642,-460.0,0.00019178,2]
[375931166,1753789838652,-460.0,0.00019178,2]
[375931168,1753789838662,-461.67519469,0.00019178,2]
[375931169,1753789838671,-460.0,0.00019178,2]
[375931170,1753789838681,-460.0,0.00019178,2]
[375931171,1753789838690,-460.0,0.00019178,2]
[375931172,1753789838700,-460.0,0.00019178,2]
[375931173,1753789838709,-460.0,0.00019178,2]
[375931174,1753789838719,-460.0,0.00019178,2]
[375931175,1753789838729,-531.77,0.00019178,2]
[375931176,1753789838738,-460.0,0.00019178,2]
[375931177,1753789838747,-460.0,0.00019178,2]
[375931178,1753789838756,-460.0,0.00019178,2]
[375931179,1753789838766,-461.46562198,0.00019178,2]
[375931180,1753789838775,-460.0,0.00019178,2]
[375931181,1753789838792,-460.0,0.00019178,2]
[375931182,1753789838804,-460.0,0.00019178,2]
[375931183,1753789838814,-460.0,0.00019178,2]
[375931184,1753789838824,-177.48005639,0.00019178,2]
[375931185,1753789838834,-460.0,0.00019178,2]
[375931186,1753789838844,-460.0,0.00019178,2]
[375931187,1753789838853,-602.01020099,0.00019178,2]
[375931188,1753789838863,-460.0,0.00019178,2]
[375931189,1753789838872,-460.0,0.00019178,2]
[375931190,1753789838882,-460.0,0.00019178,2]
[375931191,1753789838892,-460.0,0.00019178,2]
[375931192,1753789838901,-460.0,0.00019178,2]
[375931193,1753789838911,-460.0,0.00019178,2]
[375931194,1753789838921,-460.0,0.00019178,2]
[375931195,1753789838931,-460.0,0.00019178,2]
[375931196,1753789838941,-460.0,0.00019178,2]
[375931197,1753789838950,-460.0,0.00019178,2]
[375931198,1753789838960,-460.0,0.00019178,2]
[375931199,1753789838970,-460.0,0.00019178,2]
[375931200,1753789838980,-460.0,0.00019178,2]
[375931201,1753789838989,-460.0,0.00019178,2]
[375931202,1753789838999,-460.0,0.00019178,2]
[375931203,1753789839010,-460.0,0.00019178,2]
[375931204,1753789839020,-460.0,0.00019178,2]
[375931205,1753789839030,-462.78268466,0.00019178,2]
[375931206,1753789839040,-460.0,0.00019178,2]
[375931207,1753789839049,-460.0,0.00019178,2]
[375931208,1753789839059,-460.0,0.00019178,2]
[375931209,1753789839069,-460.0,0.00019178,2]
[375931210,1753789839078,-460.0,0.00019178,2]
[375931211,1753789839088,-460.0,0.00019178,2]
[375931212,1753789839098,-460.0,0.00019178,2]
[375931213,1753789839107,-460.0,0.00019178,2]
[375931214,1753789839117,-460.0,0.00019178,2]
[375931215,1753789839126,-460.0,0.00019178,2]
[375931216,1753789839136,-460.0,0.00019178,2]
[375931217,1753789839146,-327.35339739,0.00019178,2]
[375931218,1753789839155,-460.0,0.00019178,2]
[375931219,1753789839165,-460.0,0.00019178,2]
[375931220,1753789839175,-381.41157599,0.00019178,2]
[375931221,1753789839184,-460.0,0.00019178,2]
[375931222,1753789839194,-460.0,0.00019178,2]
[375931223,1753789839204,-460.0,0.00019178,2]
[375931224,1753789839213,-460.0,0.00019178,2]
[375931225,1753789839224,-460.0,0.00019178,2]
[375931226,1753789839233,-460.0,0.00019178,2]
[375931227,1753789839242,-460.0,0.00019178,2]
[375931228,1753789839251,-461.67673408,0.00019178,2]
[375931229,1753789839262,-460.0,0.00019178,2]
[375931230,1753789839271,-460.0,0.00019178,2]
[375931231,1753789839281,-460.0,0.00019178,2]
[375931232,1753789839291,-460.0,0.00019178,2]
[375931233,1753789839300,-463.95291083,0.00019178,2]
[375931234,1753789839310,-460.0,0.00019178,2]
[375931235,1753789839320,-460.0,0.00019178,2]
[375931236,1753789839330,-460.0,0.00019178,2]
[375931237,1753789839340,-460.0,0.00019178,2]
[375931238,1753789839349,-460.0,0.00019178,2]
[375931239,1753789839359,-460.0,0.00019178,2]
[375931240,1753789839368,-460.0,0.00019178,2]
[375931241,1753789839378,-460.0,0.00019178,2]
[375931242,1753789839387,-460.0,0.00019178,2]
[375931243,1753789839397,-460.0,0.00019178,2]
[375931244,1753789839411,-460.0,0.00019178,2]
[375931245,1753789839421,-460.0,0.00019178,2]
[375931246,1753789839430,-460.0,0.00019178,2]
[375931247,1753789839440,-460.0,0.00019178,2]
[375931248,1753789839450,-460.0,0.00019178,2]
[375931249,1753789839460,-460.0,0.00019178,2]
[375931250,1753789839470,-460.0,0.00019178,2]
[375931251,1753789839479,-500.0,0.00019178,2]
[375931252,1753789839488,-500.0,0.00019178,2]
[375931253,1753789839497,-500.0,0.00019178,2]
[375931254,1753789839507,-504.52444624,0.00019178,2]
[375931255,1753789839516,-460.0,0.00019178,2]
[375931256,1753789839526,-460.0,0.00019178,2]
[375931257,1753789839535,-460.0,0.00019178,2]
[375931258,1753789839545,-460.0,0.00019178,2]
[375931259,1753789839554,-460.0,0.00019178,2]
[375931260,1753789839564,-510.04550293,0.00019178,2]
[375931261,1753789839573,-2951.75,0.00019178,2]
[375931262,1753789839585,-460.0,0.00019178,2]
[375931263,1753789839595,-460.7002595,0.00019178,2]
[375931264,1753789839604,-460.0,0.00019178,2]
[375931265,1753789839614,-460.0,0.00019178,2]
[375931267,1753789839623,-460.0,0.00019178,2]
[375931269,1753789839634,-460.0,0.00019178,2]
[375931271,1753789839643,-461.4964493,0.00019178,2]
[375931273,1753789839653,-460.0,0.00019178,2]
[375931276,1753789839664,-460.0,0.00019178,2]
[375931277,1753789839674,-460.0,0.00019178,2]
[375931279,1753789839684,-460.0,0.00019178,2]
[375931281,1753789839694,-575.92110542,0.00019178,2]
[375931283,1753789839703,-460.0,0.00019178,2]
[375931286,1753789839713,-460.0,0.00019178,2]
[375931288,1753789839722,-460.0,0.00019178,2]
[375931290,1753789839732,-460.0,0.00019178,2]
[375931292,1753789839741,-460.0,0.00019178,2]
[375931295,1753789839751,-460.0,0.00019178,2]
[375931297,1753789839760,-282.63710928,0.00019178,2]
[375931299,1753789839770,-460.0,0.00019178,2]
[375931301,1753789839780,-460.0,0.00019178,2]
[375931303,1753789839790,-268.99032079,0.00019178,2]
[375931306,1753789839799,-460.0,0.00019178,2]
[375931308,1753789839808,-460.0,0.00019178,2]
[375931310,1753789839818,-460.0,0.00019178,2]
[375931312,1753789839827,-460.0,0.00019178,2]
[375931314,1753789839836,-460.0,0.00019178,2]
[375931316,1753789839846,-460.0,0.00019178,2]
[375931318,1753789839856,-460.0,0.00019178,2]
[375931320,1753789839870,-460.0,0.00019178,2]
[375931322,1753789839880,-460.0,0.00019178,2]
[375931324,1753789839889,-460.0,0.00019178,2]
[375931350,1753789840105,-460.0,0.00019178,2]
[375931352,1753789840115,-460.0,0.00019178,2]
[375931354,1753789840124,-460.0,0.00019178,2]
[375931355,1753789840134,-460.0,0.00019178,2]
[375931357,1753789840143,-460.0,0.00019178,2]
[375931359,1753789840153,-460.0,0.00019178,2]
[375931361,1753789840163,-460.0,0.00019178,2]
[375931363,1753789840172,-460.0,0.00019178,2]
[375931365,1753789840183,-460.0,0.00019178,2]
[375931367,1753789840192,-460.0,0.00019178,2]
[375931369,1753789840201,-460.0,0.00019178,2]
[375931371,1753789840211,-460.0,0.00019178,2]
[375931373,1753789840220,-460.97760049,0.00019178,2]
[375931375,1753789840229,-460.0,0.00019178,2]
[375931377,1753789840238,-460.0,0.00019178,2]
[375931379,1753789840247,-460.0,0.00019178,2]
[375931380,1753789840258,-463.48101341,0.00019178,2]
[375931383,1753789840268,-460.38045177,0.00019178,2]
[375931384,1753789840278,-460.0,0.00019178,2]
[375931386,1753789840287,-460.0,0.00019178,2]
[375931388,1753789840296,-461.441021,0.00019178,2]
[375931390,1753789840305,-460.0,0.00019178,2]
[375931392,1753789840314,-556.39737797,0.00019178,2]
[375931394,1753789840324,-420.5486287,0.00019178,2]
[375931396,1753789840333,-464.6504215,0.00019178,2]
[375931398,1753789840343,-460.0,0.00019178,2]
[375931400,1753789840353,-460.0,0.00019178,2]
[375931402,1753789840362,-460.0,0.00019178,2]
[375931404,1753789840371,-460.0,0.00019178,2]
[375931406,1753789840381,-460.0,0.00019178,2]
[375931408,1753789840390,-1137.75,0.00019178,2]
[375931410,1753789840400,-460.0,0.00019178,2]
[375931412,1753789840409,-460.0,0.00019178,2]
[375931414,1753789840418,-460.0,0.00019178,2]
[375931416,1753789840427,-460.0,0.00019178,2]
[375931418,1753789840436,-460.0,0.00019178,2]
[375931420,1753789840445,-460.0,0.00019178,2]
[375931422,1753789840454,-460.0,0.00019178,2]
[375931424,1753789840464,-988.39,0.00019178,2]
[375931426,1753789840473,-460.0,0.00019178,2]
[375931428,1753789840483,-460.0,0.00019178,2]
[375931430,1753789840492,-460.0,0.00019178,2]
[375931432,1753789840501,-1046.97,0.00019178,2]
[375931434,1753789840511,-460.0,0.00019178,2]
[375931435,1753789840520,-460.0,0.00019178,2]
[375931437,1753789840530,-461.91117377,0.00019178,2]
[375931439,1753789840540,-460.0,0.00019178,2]
[375931441,1753789840549,-460.0,0.00019178,2]
[375931443,1753789840558,-460.0,0.00019178,2]
[375931445,1753789840567,-460.0,0.00019178,2]
[375931447,1753789840576,-461.28619102,0.00019178,2]
[375931449,1753789840588,-460.0,0.00019178,2]
[375931451,1753789840598,-460.0,0.00019178,2]
[375931453,1753789840608,-549.29,0.00019178,2]
[375931455,1753789840618,-460.0,0.00019178,2]
[375931457,1753789840628,-460.0,0.00019178,2]
[375931459,1753789840639,-460.0,0.00019178,2]
[375931461,1753789840648,-460.0,0.00019178,2]
[375931463,1753789840657,-460.0,0.00019178,2]
[375931465,1753789840667,-460.0,0.00019178,2]
[375931467,1753789840676,-460.0,0.00019178,2]
[375931469,1753789840686,-460.0,0.00019178,2]
[375931471,1753789840695,-460.0,0.00019178,2]
[375931474,1753789840712,-460.0,0.00019178,2]
[375931476,1753789840724,-460.0,0.00019178,2]
[375931478,1753789840734,-460.0,0.00019178,2]
[375931480,1753789840744,-460.0,0.00019178,2]
[375931482,1753789840753,-460.0,0.00019178,2]
[375931484,1753789840764,-460.0,0.00019178,2]
[375931487,1753789840775,-460.0,0.00019178,2]
[375931489,1753789840785,-460.0,0.00019178,2]
[375931491,1753789840795,-460.0,0.00019178,2]
[375931493,1753789840805,-460.0,0.00019178,2]
[375931495,1753789840815,-460.0,0.00019178,2]
[375931497,1753789840825,-460.0,0.00019178,2]
[375931499,1753789840835,-460.0,0.00019178,2]
[375931501,1753789840844,-460.0,0.00019178,2]
[375931503,1753789840853,-460.0,0.00019178,2]
[375931505,1753789840863,-413.65264226,0.00019178,2]
[375931507,1753789840872,-460.0,0.00019178,2]
[375931509,1753789840882,-460.69191773,0.00019178,2]
[375931511,1753789840892,-500.0,0.00019178,2]
[375931513,1753789840901,-500.0,0.00019178,2]
[375931515,1753789840911,-500.0,0.00019178,2]
[375931517,1753789840920,-500.0,0.00019178,2]
[375931519,1753789840929,-422.43039946,0.00019178,2]
[375931521,1753789840939,-460.0,0.00019178,2]
[375931523,1753789840949,-607.06,0.00019178,2]
[375931525,1753789840958,-460.0,0.00019178,2]
[375931527,1753789840968,-460.0,0.00019178,2]